[Event "Titled Tuesday Blitz April 26 Late 2022"]
[White "Zanette, Edgard Vinicius"]
[Black "Song, Michael"]
[WhiteFideId "2109263"]
[BlackFideId "2613190"]
[WhiteElo "2182"]
[BlackElo "2274"]
[Result "0-1"]
[Round "02"]
[TimeControl "180+1"]
[Date "2022.04.26"]
[WhiteClock "0:00:14"]
[BlackClock "0:00:16"]

1. e4 {[%clk 0:03:00]}  e5 {[%clk 0:02:58]} 2. Nf3 {[%clk 0:03:00]}  Nc6 {[%clk 0:02:58]} 3. Bb5 {[%clk 0:03:00]}  Nf6 {[%clk 0:02:58]} 4. d3 {[%clk 0:02:59]}  Bc5 {[%clk 0:02:57]} 5. O-O {[%clk 0:02:58]}  O-O {[%clk 0:02:56]} 6. c3 {[%clk 0:02:56]}  d6 {[%clk 0:02:56]} 7. h3 {[%clk 0:02:55]}  Bb6 {[%clk 0:02:46]} 8. Be3 {[%clk 0:02:50]}  Ne7 {[%clk 0:02:44]} 9. Ba4 {[%clk 0:02:44]}  Ng6 {[%clk 0:02:43]} 10. Nbd2 {[%clk 0:02:39]}  Bxe3 {[%clk 0:02:31]} 11. fxe3 {[%clk 0:02:39]}  d5 {[%clk 0:02:31]} 12. Qe2 {[%clk 0:02:24]}  dxe4 {[%clk 0:02:30]} 13. Nxe4 {[%clk 0:02:18]}  Nxe4 {[%clk 0:02:29]} 14. dxe4 {[%clk 0:02:19]}  c6 {[%clk 0:02:25]} 15. Rad1 {[%clk 0:02:16]}  Qe7 {[%clk 0:02:20]} 16. Bb3 {[%clk 0:02:02]}  Be6 {[%clk 0:02:18]} 17. Nd2 {[%clk 0:01:53]}  Rad8 {[%clk 0:02:15]} 18. Nc4 {[%clk 0:01:38]}  Qc5 {[%clk 0:02:09]} 19. Kh2 {[%clk 0:01:31]}  a5 {[%clk 0:01:58]} 20. Nd2 {[%clk 0:01:30]}  Bxb3 {[%clk 0:01:52]} 21. Nxb3 {[%clk 0:01:31]}  Qb6 {[%clk 0:01:50]} 22. Nc1 {[%clk 0:01:00]}  a4 {[%clk 0:01:33]} 23. Qf2 {[%clk 0:00:50]}  Rxd1 {[%clk 0:01:22]} 24. Rxd1 {[%clk 0:00:50]}  Rd8 {[%clk 0:01:23]} 25. Rxd8+ {[%clk 0:00:47]}  Qxd8 {[%clk 0:01:22]} 26. Qf5 {[%clk 0:00:40]}  Kf8 {[%clk 0:00:55]} 27. Ne2 {[%clk 0:00:37]}  h6 {[%clk 0:00:43]} 28. Ng1 {[%clk 0:00:31]}  b5 {[%clk 0:00:41]} 29. Nf3 {[%clk 0:00:30]}  Qc7 {[%clk 0:00:41]} 30. h4 {[%clk 0:00:29]}  Ne7 {[%clk 0:00:31]} 31. Qxe5 {[%clk 0:00:29]}  Qxe5+ {[%clk 0:00:30]} 32. Nxe5 {[%clk 0:00:30]}  f6 {[%clk 0:00:31]} 33. Nd7+ {[%clk 0:00:29]}  Ke8 {[%clk 0:00:27]} 34. Nc5 {[%clk 0:00:30]}  Ng6 {[%clk 0:00:25]} 35. Kg3 {[%clk 0:00:29]}  Ne5 {[%clk 0:00:25]} 36. b3 {[%clk 0:00:27]}  a3 {[%clk 0:00:24]} 37. Kf4 {[%clk 0:00:24]}  Ke7 {[%clk 0:00:24]} 38. g4 {[%clk 0:00:20]}  g5+ {[%clk 0:00:15]} 39. hxg5 {[%clk 0:00:19]}  hxg5+ {[%clk 0:00:16]} 40. Kf5 {[%clk 0:00:18]}  Nf3 {[%clk 0:00:16]} 41. Nd3 {[%clk 0:00:14]}  Nh4# {[%clk 0:00:16]} 0-1


[Site "https://www.chess.com"]

[Event "Titled Tuesday Blitz April 26 Late 2022"]
[White "Adewumi, Tanitoluwa"]
[Black "Prohorov, Olexandr"]
[WhiteFideId "30966396"]
[BlackFideId "14105578"]
[WhiteElo "2548"]
[BlackElo "1993"]
[Result "0-1"]
[Round "03"]
[TimeControl "180+1"]
[Date "2022.04.26"]
[WhiteClock "0:00:06"]
[BlackClock "0:00:16"]

1. e4 {[%clk 0:03:00]}  c5 {[%clk 0:02:58]} 2. Nf3 {[%clk 0:03:00]}  e6 {[%clk 0:02:56]} 3. d4 {[%clk 0:03:00]}  cxd4 {[%clk 0:02:57]} 4. Nxd4 {[%clk 0:03:00]}  Qb6 {[%clk 0:02:57]} 5. Nb3 {[%clk 0:02:59]}  Nc6 {[%clk 0:02:55]} 6. Be3 {[%clk 0:02:59]}  Qc7 {[%clk 0:02:53]} 7. Nc3 {[%clk 0:02:59]}  Nf6 {[%clk 0:02:52]} 8. Be2 {[%clk 0:02:56]}  Bb4 {[%clk 0:02:52]} 9. Bd3 {[%clk 0:02:33]}  d5 {[%clk 0:02:50]} 10. exd5 {[%clk 0:02:27]}  Nxd5 {[%clk 0:02:51]} 11. Bd2 {[%clk 0:02:22]}  Nxc3 {[%clk 0:02:52]} 12. Bxc3 {[%clk 0:02:08]}  Bxc3+ {[%clk 0:02:52]} 13. bxc3 {[%clk 0:02:08]}  O-O {[%clk 0:02:52]} 14. O-O {[%clk 0:02:05]}  e5 {[%clk 0:02:50]} 15. Qh5 {[%clk 0:02:04]}  g6 {[%clk 0:02:49]} 16. Qh6 {[%clk 0:02:03]}  Be6 {[%clk 0:02:21]} 17. Nc5 {[%clk 0:02:01]}  Bd5 {[%clk 0:02:03]} 18. c4 {[%clk 0:01:59]}  Nb4 {[%clk 0:02:01]} 19. Qe3 {[%clk 0:01:45]}  Rac8 {[%clk 0:02:00]} 20. cxd5 {[%clk 0:01:32]}  Qxc5 {[%clk 0:01:59]} 21. Qxe5 {[%clk 0:01:32]}  Rfe8 {[%clk 0:01:53]} 22. Qg3 {[%clk 0:01:25]}  Qxd5 {[%clk 0:01:49]} 23. Rfd1 {[%clk 0:01:12]}  Nxd3 {[%clk 0:01:46]} 24. cxd3 {[%clk 0:01:10]}  h5 {[%clk 0:01:36]} 25. Qf4 {[%clk 0:00:58]}  a6 {[%clk 0:01:31]} 26. Qb4 {[%clk 0:00:56]}  Re2 {[%clk 0:01:20]} 27. Rd2 {[%clk 0:00:43]}  Rc2 {[%clk 0:01:19]} 28. Rxc2 {[%clk 0:00:38]}  Rxc2 {[%clk 0:01:19]} 29. Qe4 {[%clk 0:00:25]}  Rxa2 {[%clk 0:01:10]} 30. Rxa2 {[%clk 0:00:19]}  Qxa2 {[%clk 0:01:11]} 31. g3 {[%clk 0:00:18]}  Qa1+ {[%clk 0:01:04]} 32. Kg2 {[%clk 0:00:18]}  Qb2 {[%clk 0:00:59]} 33. d4 {[%clk 0:00:17]}  Qb4 {[%clk 0:00:55]} 34. Qe8+ {[%clk 0:00:17]}  Kg7 {[%clk 0:00:54]} 35. Qe5+ {[%clk 0:00:18]}  Kg8 {[%clk 0:00:50]} 36. d5 {[%clk 0:00:17]}  Qb5 {[%clk 0:00:46]} 37. Qb8+ {[%clk 0:00:17]}  Kh7 {[%clk 0:00:44]} 38. Qe5 {[%clk 0:00:16]}  a5 {[%clk 0:00:36]} 39. Qd4 {[%clk 0:00:14]}  Qd7 {[%clk 0:00:34]} 40. d6 {[%clk 0:00:11]}  a4 {[%clk 0:00:34]} 41. Kf3 {[%clk 0:00:09]}  b5 {[%clk 0:00:29]} 42. Ke4 {[%clk 0:00:10]}  a3 {[%clk 0:00:28]} 43. Kd5 {[%clk 0:00:09]}  a2 {[%clk 0:00:25]} 44. Qb2 {[%clk 0:00:07]}  Qb7+ {[%clk 0:00:16]} 45. Kc5 {[%clk 0:00:07]}  Qa7+ {[%clk 0:00:15]} 46. Kb4 {[%clk 0:00:05]}  a1=Q {[%clk 0:00:15]} 47. Qxa1 {[%clk 0:00:03]}  Qxa1 {[%clk 0:00:15]} 48. Kc5 {[%clk 0:00:01]}  Qa8 {[%clk 0:00:13]} 49. Kxb5 {[%clk 0:00:01]}  Qd8 {[%clk 0:00:13]} 50. Kc6 {[%clk 0:00:02]}  Kg7 {[%clk 0:00:13]} 51. Kd5 {[%clk 0:00:02]}  Kf6 {[%clk 0:00:13]} 52. f4 {[%clk 0:00:03]}  Qd7 {[%clk 0:00:14]} 53. h3 {[%clk 0:00:03]}  h4 {[%clk 0:00:14]} 54. g4 {[%clk 0:00:03]}  g5 {[%clk 0:00:14]} 55. f5 {[%clk 0:00:03]}  Kg7 {[%clk 0:00:13]} 56. Ke5 {[%clk 0:00:03]}  f6+ {[%clk 0:00:13]} 57. Kd5 {[%clk 0:00:03]}  Kf7 {[%clk 0:00:13]} 58. Kc5 {[%clk 0:00:04]}  Ke8 {[%clk 0:00:14]} 59. Kd5 {[%clk 0:00:04]}  Kd8 {[%clk 0:00:14]} 60. Kc5 {[%clk 0:00:05]}  Kc8 {[%clk 0:00:15]} 61. Kd5 {[%clk 0:00:05]}  Kb7 {[%clk 0:00:15]} 62. Kc5 {[%clk 0:00:06]}  Ka6 {[%clk 0:00:16]} 63. Kd5 {[%clk 0:00:06]}  Kb5 {[%clk 0:00:16]} 0-1


[Site "https://www.chess.com"]

[Event "Titled Tuesday Blitz April 26 Late 2022"]
[White "Aigner, Michael"]
[Black "Stearman, Josiah"]
[WhiteFideId "2017288"]
[BlackFideId "2062496"]
[WhiteElo "2403"]
[BlackElo "2402"]
[Result "0-1"]
[Round "03"]
[TimeControl "180+1"]
[Date "2022.04.26"]
[WhiteClock "0:01:38"]
[BlackClock "0:01:56"]

1. e4 {[%clk 0:03:00]}  c5 {[%clk 0:02:56]} 2. Nc3 {[%clk 0:03:00]}  Nc6 {[%clk 0:02:56]} 3. g3 {[%clk 0:03:00]}  g6 {[%clk 0:02:56]} 4. Bg2 {[%clk 0:03:01]}  Bg7 {[%clk 0:02:57]} 5. d3 {[%clk 0:03:01]}  e6 {[%clk 0:02:58]} 6. f4 {[%clk 0:02:55]}  Nge7 {[%clk 0:02:57]} 7. Nf3 {[%clk 0:02:55]}  d5 {[%clk 0:02:57]} 8. e5 {[%clk 0:02:53]}  Rb8 {[%clk 0:02:57]} 9. O-O {[%clk 0:02:50]}  b5 {[%clk 0:02:57]} 10. Ne2 {[%clk 0:02:50]}  c4 {[%clk 0:02:56]} 11. d4 {[%clk 0:02:50]}  b4 {[%clk 0:02:56]} 12. g4 {[%clk 0:02:47]}  h5 {[%clk 0:02:55]} 13. g5 {[%clk 0:02:40]}  Nf5 {[%clk 0:02:46]} 14. h4 {[%clk 0:02:35]}  a5 {[%clk 0:02:44]} 15. Kh2 {[%clk 0:02:35]}  Ba6 {[%clk 0:02:43]} 16. c3 {[%clk 0:02:30]}  a4 {[%clk 0:02:40]} 17. Ng3 {[%clk 0:02:21]}  Nxg3 {[%clk 0:02:24]} 18. Kxg3 {[%clk 0:02:20]}  bxc3 {[%clk 0:02:24]} 19. bxc3 {[%clk 0:02:19]}  Qa5 {[%clk 0:02:25]} 20. Qc2 {[%clk 0:02:11]}  O-O {[%clk 0:02:21]} 21. Ba3 {[%clk 0:02:11]}  Rfc8 {[%clk 0:02:18]} 22. Rab1 {[%clk 0:02:10]}  Bf8 {[%clk 0:02:18]} 23. Bxf8 {[%clk 0:02:08]}  Kxf8 {[%clk 0:02:18]} 24. Nd2 {[%clk 0:02:01]}  a3 {[%clk 0:02:13]} 25. Bf3 {[%clk 0:01:57]}  Ne7 {[%clk 0:02:04]} 26. Rfc1 {[%clk 0:01:51]}  Nf5+ {[%clk 0:02:02]} 27. Kh3 {[%clk 0:01:45]}  Ne3 {[%clk 0:01:58]} 28. Rxb8 {[%clk 0:01:43]}  Rxb8 {[%clk 0:01:57]} 29. Rb1 {[%clk 0:01:38]}  Nxc2 {[%clk 0:01:56]} 0-1


[Site "https://www.chess.com"]

[Event "Titled Tuesday Blitz April 26 Late 2022"]
[White "Alinasab, Mobina"]
[Black "Mikhailov, Viacheslav"]
[WhiteFideId "12528897"]
[BlackFideId "4187369"]
[WhiteElo "2031"]
[BlackElo "2381"]
[Result "0-1"]
[Round "03"]
[TimeControl "180+1"]
[Date "2022.04.26"]
[WhiteClock "0:00:11"]
[BlackClock "0:01:05"]

1. e4 {[%clk 0:03:00]}  d6 {[%clk 0:02:59]} 2. d4 {[%clk 0:02:59]}  Nf6 {[%clk 0:02:59]} 3. Nc3 {[%clk 0:02:57]}  g6 {[%clk 0:03:00]} 4. f4 {[%clk 0:02:57]}  Bg7 {[%clk 0:03:00]} 5. Nf3 {[%clk 0:02:58]}  O-O {[%clk 0:03:01]} 6. e5 {[%clk 0:02:59]}  dxe5 {[%clk 0:03:01]} 7. fxe5 {[%clk 0:03:00]}  Nd5 {[%clk 0:03:01]} 8. Bc4 {[%clk 0:03:00]}  Nxc3 {[%clk 0:03:00]} 9. bxc3 {[%clk 0:03:01]}  c5 {[%clk 0:03:01]} 10. Be3 {[%clk 0:03:00]}  Nc6 {[%clk 0:02:59]} 11. O-O {[%clk 0:03:00]}  Bg4 {[%clk 0:02:59]} 12. Be2 {[%clk 0:02:50]}  e6 {[%clk 0:02:57]} 13. h3 {[%clk 0:02:50]}  Bxf3 {[%clk 0:02:56]} 14. Bxf3 {[%clk 0:02:51]}  Qa5 {[%clk 0:02:53]} 15. Qd3 {[%clk 0:02:46]}  Rad8 {[%clk 0:02:51]} 16. Qc4 {[%clk 0:02:47]}  cxd4 {[%clk 0:02:49]} 17. cxd4 {[%clk 0:02:47]}  Qb6 {[%clk 0:02:44]} 18. Bxc6 {[%clk 0:02:40]}  Qxc6 {[%clk 0:02:45]} 19. Qxc6 {[%clk 0:02:39]}  bxc6 {[%clk 0:02:46]} 20. Rab1 {[%clk 0:02:40]}  Rb8 {[%clk 0:02:38]} 21. Rb3 {[%clk 0:02:39]}  Rb6 {[%clk 0:02:27]} 22. Ra3 {[%clk 0:01:57]}  Rb7 {[%clk 0:02:19]} 23. Ra6 {[%clk 0:01:50]}  Rc8 {[%clk 0:02:18]} 24. Rd1 {[%clk 0:01:48]}  Bf8 {[%clk 0:02:04]} 25. Rd3 {[%clk 0:01:40]}  c5 {[%clk 0:01:54]} 26. d5 {[%clk 0:01:25]}  c4 {[%clk 0:01:52]} 27. Rd1 {[%clk 0:01:25]}  exd5 {[%clk 0:01:48]} 28. Rxd5 {[%clk 0:01:26]}  Rb2 {[%clk 0:01:28]} 29. c3 {[%clk 0:01:11]}  Rc2 {[%clk 0:01:19]} 30. Bd4 {[%clk 0:01:10]}  Rb8 {[%clk 0:01:18]} 31. Rxa7 {[%clk 0:00:59]}  Rbb2 {[%clk 0:01:17]} 32. Rdd7 {[%clk 0:00:58]}  Rxg2+ {[%clk 0:01:17]} 33. Kf1 {[%clk 0:00:58]}  Rgd2 {[%clk 0:01:09]} 34. Ke1 {[%clk 0:00:37]}  Rh2 {[%clk 0:01:07]} 35. Bg1 {[%clk 0:00:17]}  Rh1 {[%clk 0:01:06]} 36. Rxf7 {[%clk 0:00:11]}  Rxg1+ {[%clk 0:01:05]} 0-1


[Site "https://www.chess.com"]

[Event "Titled Tuesday Blitz April 26 Late 2022"]
[White "Araujo Filho, Luiz Antonio Coel"]
[Black "Araujo Sanchez, Josue"]
[WhiteFideId "2130661"]
[BlackFideId "6416896"]
[WhiteElo "2321"]
[BlackElo "2339"]
[Result "0-1"]
[Round "03"]
[TimeControl "180+1"]
[Date "2022.04.26"]
[WhiteClock "0:02:15"]
[BlackClock "0:02:20"]

1. d4 {[%clk 0:03:00]}  Nf6 {[%clk 0:02:51]} 2. Nf3 {[%clk 0:03:01]}  b6 {[%clk 0:02:48]} 3. e3 {[%clk 0:03:00]}  Bb7 {[%clk 0:02:49]} 4. Bd3 {[%clk 0:03:01]}  e6 {[%clk 0:02:49]} 5. Nbd2 {[%clk 0:03:02]}  c5 {[%clk 0:02:49]} 6. Qe2 {[%clk 0:03:02]}  Nc6 {[%clk 0:02:49]} 7. c3 {[%clk 0:03:02]}  Be7 {[%clk 0:02:49]} 8. O-O {[%clk 0:03:02]}  O-O {[%clk 0:02:49]} 9. a3 {[%clk 0:03:01]}  Qc7 {[%clk 0:02:45]} 10. e4 {[%clk 0:02:58]}  d6 {[%clk 0:02:43]} 11. e5 {[%clk 0:02:49]}  dxe5 {[%clk 0:02:35]} 12. dxe5 {[%clk 0:02:48]}  Nd7 {[%clk 0:02:34]} 13. Re1 {[%clk 0:02:46]}  Rfe8 {[%clk 0:02:32]} 14. Nf1 {[%clk 0:02:35]}  Na5 {[%clk 0:02:30]} 15. Bf4 {[%clk 0:02:28]}  Rad8 {[%clk 0:02:25]} 16. Rad1 {[%clk 0:02:24]}  Nf8 {[%clk 0:02:23]} 17. Bg5 {[%clk 0:02:15]}  Bxf3 {[%clk 0:02:20]} 0-1


[Site "https://www.chess.com"]

[Event "Titled Tuesday Blitz April 26 Late 2022"]
[White "Aroesti, Roee"]
[Black "Kanyamarala, Trisha"]
[WhiteFideId "2817144"]
[BlackFideId "45004722"]
[WhiteElo "2068"]
[BlackElo "2079"]
[Result "1-0"]
[Round "03"]
[TimeControl "180+1"]
[Date "2022.04.26"]
[WhiteClock "0:01:20"]
[BlackClock "0:00:05"]

1. Nf3 {[%clk 0:03:00]}  d5 {[%clk 0:02:59]} 2. c4 {[%clk 0:02:58]}  e6 {[%clk 0:02:59]} 3. g3 {[%clk 0:02:57]}  b6 {[%clk 0:02:58]} 4. Bg2 {[%clk 0:02:57]}  Bb7 {[%clk 0:02:59]} 5. O-O {[%clk 0:02:57]}  Nd7 {[%clk 0:02:58]} 6. b3 {[%clk 0:02:56]}  Ngf6 {[%clk 0:02:58]} 7. Bb2 {[%clk 0:02:57]}  Be7 {[%clk 0:02:56]} 8. d4 {[%clk 0:02:57]}  O-O {[%clk 0:02:55]} 9. Nbd2 {[%clk 0:02:57]}  c5 {[%clk 0:02:53]} 10. cxd5 {[%clk 0:02:57]}  exd5 {[%clk 0:02:52]} 11. Rc1 {[%clk 0:02:55]}  Ne4 {[%clk 0:02:42]} 12. dxc5 {[%clk 0:02:50]}  Bxc5 {[%clk 0:02:26]} 13. Nd4 {[%clk 0:02:40]}  Ndf6 {[%clk 0:02:06]} 14. e3 {[%clk 0:02:37]}  Ba6 {[%clk 0:01:51]} 15. Re1 {[%clk 0:02:26]}  Qd7 {[%clk 0:01:51]} 16. a3 {[%clk 0:02:12]}  Rfe8 {[%clk 0:01:35]} 17. b4 {[%clk 0:02:10]}  Bd6 {[%clk 0:01:35]} 18. Nxe4 {[%clk 0:01:59]}  Nxe4 {[%clk 0:01:32]} 19. Ne2 {[%clk 0:01:48]}  Qf5 {[%clk 0:01:13]} 20. Nf4 {[%clk 0:01:47]}  Bb7 {[%clk 0:00:55]} 21. h4 {[%clk 0:01:35]}  Bxf4 {[%clk 0:00:41]} 22. exf4 {[%clk 0:01:32]}  Rad8 {[%clk 0:00:37]} 23. Qd4 {[%clk 0:01:32]}  f6 {[%clk 0:00:31]} 24. Rc7 {[%clk 0:01:30]}  Ba6 {[%clk 0:00:28]} 25. Kh2 {[%clk 0:01:26]}  Bc4 {[%clk 0:00:23]} 26. Bxe4 {[%clk 0:01:18]}  Rxe4 {[%clk 0:00:19]} 27. Rxe4 {[%clk 0:01:19]}  Qxe4 {[%clk 0:00:19]} 28. Rxg7+ {[%clk 0:01:19]}  Kxg7 {[%clk 0:00:05]} 29. Qxf6+ {[%clk 0:01:20]}  Kg8 {[%clk 0:00:05]} 30. Qg7# {[%clk 0:01:20]} 1-0


[Site "https://www.chess.com"]

[Event "Titled Tuesday Blitz April 26 Late 2022"]
[White "Babazada, Khazar"]
[Black "Zlatin, Alexander"]
[WhiteFideId "13413554"]
[BlackFideId "2810549"]
[WhiteElo "2406"]
[BlackElo "2228"]
[Result "1-0"]
[Round "03"]
[TimeControl "180+1"]
[Date "2022.04.26"]
[WhiteClock "0:00:33"]
[BlackClock "0:00:04"]

1. Nf3 {[%clk 0:03:00]}  Nf6 {[%clk 0:02:58]} 2. g3 {[%clk 0:02:59]}  e5 {[%clk 0:02:59]} 3. Nxe5 {[%clk 0:02:58]}  d5 {[%clk 0:02:57]} 4. Bg2 {[%clk 0:02:57]}  Bd6 {[%clk 0:02:56]} 5. d4 {[%clk 0:02:57]}  O-O {[%clk 0:02:56]} 6. O-O {[%clk 0:02:58]}  c5 {[%clk 0:02:56]} 7. c3 {[%clk 0:02:58]}  Nc6 {[%clk 0:02:55]} 8. f4 {[%clk 0:02:53]}  Qb6 {[%clk 0:02:47]} 9. e3 {[%clk 0:02:42]}  Bf5 {[%clk 0:02:30]} 10. Nd2 {[%clk 0:02:38]}  cxd4 {[%clk 0:02:20]} 11. exd4 {[%clk 0:02:33]}  h5 {[%clk 0:02:03]} 12. Kh1 {[%clk 0:02:30]}  g6 {[%clk 0:01:56]} 13. Ndf3 {[%clk 0:02:19]}  Kg7 {[%clk 0:01:56]} 14. Nh4 {[%clk 0:02:13]}  Be4 {[%clk 0:01:53]} 15. Bxe4 {[%clk 0:01:35]}  Nxe4 {[%clk 0:01:48]} 16. Qf3 {[%clk 0:01:33]}  Qc7 {[%clk 0:01:10]} 17. Be3 {[%clk 0:01:26]}  Rae8 {[%clk 0:01:05]} 18. Rae1 {[%clk 0:01:17]}  Qc8 {[%clk 0:00:43]} 19. Bc1 {[%clk 0:01:10]}  Qh3 {[%clk 0:00:38]} 20. Qg2 {[%clk 0:00:58]}  Qc8 {[%clk 0:00:37]} 21. Re3 {[%clk 0:00:49]}  Ne7 {[%clk 0:00:37]} 22. f5 {[%clk 0:00:45]}  Nxf5 {[%clk 0:00:33]} 23. Nxf5+ {[%clk 0:00:42]}  gxf5 {[%clk 0:00:34]} 24. Ref3 {[%clk 0:00:36]}  Bxe5 {[%clk 0:00:33]} 25. dxe5 {[%clk 0:00:37]}  Rxe5 {[%clk 0:00:28]} 26. Be3 {[%clk 0:00:37]}  f6 {[%clk 0:00:14]} 27. Bd4 {[%clk 0:00:36]}  Re7 {[%clk 0:00:12]} 28. Rxf5 {[%clk 0:00:34]}  Qe6 {[%clk 0:00:08]} 29. Qf3 {[%clk 0:00:35]}  Kg6 {[%clk 0:00:06]} 30. Qxh5+ {[%clk 0:00:32]}  Kg7 {[%clk 0:00:05]} 31. R1f4 {[%clk 0:00:33]}  Ng5 {[%clk 0:00:04]} 32. Rxg5# {[%clk 0:00:33]} 1-0


[Site "https://www.chess.com"]

[Event "Titled Tuesday Blitz April 26 Late 2022"]
[White "Baches Garcia, Guillermo"]
[Black "Kozak, Adam"]
[WhiteFideId "2209764"]
[BlackFideId "753246"]
[WhiteElo "2531"]
[BlackElo "2459"]
[Result "0-1"]
[Round "03"]
[TimeControl "180+1"]
[Date "2022.04.26"]
[WhiteClock "0:00:11"]
[BlackClock "0:00:53"]

1. e4 {[%clk 0:03:00]}  c5 {[%clk 0:02:54]} 2. Nf3 {[%clk 0:03:01]}  d6 {[%clk 0:02:53]} 3. d4 {[%clk 0:03:01]}  cxd4 {[%clk 0:02:53]} 4. Nxd4 {[%clk 0:03:02]}  Nf6 {[%clk 0:02:54]} 5. Nc3 {[%clk 0:03:02]}  a6 {[%clk 0:02:54]} 6. Bd3 {[%clk 0:03:03]}  g6 {[%clk 0:02:50]} 7. f3 {[%clk 0:03:02]}  Bg7 {[%clk 0:02:50]} 8. Be3 {[%clk 0:03:02]}  O-O {[%clk 0:02:50]} 9. Qd2 {[%clk 0:03:03]}  Nc6 {[%clk 0:02:50]} 10. O-O-O {[%clk 0:02:59]}  Bd7 {[%clk 0:02:48]} 11. g4 {[%clk 0:02:57]}  Qe8 {[%clk 0:02:34]} 12. h4 {[%clk 0:02:48]}  Nxg4 {[%clk 0:02:33]} 13. fxg4 {[%clk 0:02:09]}  Nxd4 {[%clk 0:02:31]} 14. h5 {[%clk 0:01:55]}  g5 {[%clk 0:02:14]} 15. h6 {[%clk 0:01:37]}  Be5 {[%clk 0:02:13]} 16. Bxd4 {[%clk 0:01:12]}  Bxd4 {[%clk 0:02:09]} 17. Qxg5+ {[%clk 0:01:12]}  Kh8 {[%clk 0:02:09]} 18. Nd5 {[%clk 0:01:12]}  Rg8 {[%clk 0:01:47]} 19. Qxe7 {[%clk 0:01:02]}  Qxe7 {[%clk 0:01:45]} 20. Nxe7 {[%clk 0:01:03]}  Rxg4 {[%clk 0:01:45]} 21. Be2 {[%clk 0:00:48]}  Be3+ {[%clk 0:01:38]} 22. Kb1 {[%clk 0:00:48]}  Rg2 {[%clk 0:01:37]} 23. Rxd6 {[%clk 0:00:44]}  Be6 {[%clk 0:01:36]} 24. Bd3 {[%clk 0:00:16]}  Bc5 {[%clk 0:01:28]} 25. e5 {[%clk 0:00:15]}  Bxd6 {[%clk 0:01:24]} 26. exd6 {[%clk 0:00:16]}  Rd8 {[%clk 0:01:23]} 27. b3 {[%clk 0:00:16]}  Rxd6 {[%clk 0:01:22]} 28. Rf1 {[%clk 0:00:16]}  Rd7 {[%clk 0:01:18]} 29. Nf5 {[%clk 0:00:15]}  Rg6 {[%clk 0:01:16]} 30. Ng7 {[%clk 0:00:13]}  Rxh6 {[%clk 0:01:15]} 31. Nxe6 {[%clk 0:00:13]}  Rxe6 {[%clk 0:01:15]} 32. Rh1 {[%clk 0:00:12]}  h6 {[%clk 0:00:55]} 33. Bf5 {[%clk 0:00:12]}  Rdd6 {[%clk 0:00:56]} 34. Bxe6 {[%clk 0:00:12]}  Rxe6 {[%clk 0:00:57]} 35. c4 {[%clk 0:00:13]}  Kg7 {[%clk 0:00:57]} 36. Kc2 {[%clk 0:00:13]}  f5 {[%clk 0:00:58]} 37. Kc3 {[%clk 0:00:13]}  Kg6 {[%clk 0:00:57]} 38. Kd4 {[%clk 0:00:14]}  f4 {[%clk 0:00:57]} 39. Kd5 {[%clk 0:00:14]}  Re2 {[%clk 0:00:56]} 40. c5 {[%clk 0:00:11]}  Kg5 {[%clk 0:00:56]} 41. Kd6 {[%clk 0:00:11]}  f3 {[%clk 0:00:56]} 42. Kc7 {[%clk 0:00:11]}  Re7+ {[%clk 0:00:55]} 43. Kd6 {[%clk 0:00:11]}  Rf7 {[%clk 0:00:55]} 44. b4 {[%clk 0:00:09]}  f2 {[%clk 0:00:52]} 45. Rf1 {[%clk 0:00:08]}  Kg4 {[%clk 0:00:53]} 46. a4 {[%clk 0:00:08]}  Kg3 {[%clk 0:00:53]} 47. b5 {[%clk 0:00:09]}  axb5 {[%clk 0:00:52]} 48. axb5 {[%clk 0:00:09]}  Kg2 {[%clk 0:00:52]} 49. Ra1 {[%clk 0:00:09]}  f1=Q {[%clk 0:00:52]} 50. Rxf1 {[%clk 0:00:09]}  Kxf1 {[%clk 0:00:53]} 51. c6 {[%clk 0:00:10]}  bxc6 {[%clk 0:00:53]} 52. bxc6 {[%clk 0:00:11]}  h5 {[%clk 0:00:53]} 0-1


[Site "https://www.chess.com"]

[Event "Titled Tuesday Blitz April 26 Late 2022"]
[White "Chigaev, Maksim"]
[Black "Pourkashiyan, Atousa"]
[WhiteFideId "4108116"]
[BlackFideId "12502014"]
[WhiteElo "2478"]
[BlackElo "2247"]
[Result "1-0"]
[Round "03"]
[TimeControl "180+1"]
[Date "2022.04.26"]
[WhiteClock "0:00:05"]
[BlackClock "0:00:09"]

1. d4 {[%clk 0:03:00]}  Nf6 {[%clk 0:02:45]} 2. c4 {[%clk 0:03:00]}  e6 {[%clk 0:02:45]} 3. Nf3 {[%clk 0:03:01]}  d5 {[%clk 0:02:44]} 4. g3 {[%clk 0:03:01]}  Be7 {[%clk 0:02:44]} 5. Bg2 {[%clk 0:03:01]}  O-O {[%clk 0:02:45]} 6. Qc2 {[%clk 0:03:00]}  Nbd7 {[%clk 0:02:41]} 7. O-O {[%clk 0:02:51]}  a6 {[%clk 0:02:37]} 8. b3 {[%clk 0:02:44]}  c5 {[%clk 0:02:32]} 9. Bb2 {[%clk 0:02:39]}  b6 {[%clk 0:02:27]} 10. Rd1 {[%clk 0:02:26]}  Bb7 {[%clk 0:02:25]} 11. dxc5 {[%clk 0:02:23]}  bxc5 {[%clk 0:02:22]} 12. cxd5 {[%clk 0:02:08]}  exd5 {[%clk 0:02:18]} 13. Nh4 {[%clk 0:02:09]}  Qb8 {[%clk 0:01:51]} 14. Nf5 {[%clk 0:02:02]}  Re8 {[%clk 0:01:51]} 15. Nc3 {[%clk 0:02:01]}  d4 {[%clk 0:01:48]} 16. Na4 {[%clk 0:01:11]}  Bxg2 {[%clk 0:01:48]} 17. Kxg2 {[%clk 0:01:12]}  Bf8 {[%clk 0:01:49]} 18. f3 {[%clk 0:01:02]}  Qe5 {[%clk 0:01:42]} 19. e4 {[%clk 0:00:58]}  Nd5 {[%clk 0:01:22]} 20. exd5 {[%clk 0:00:40]}  Nf6 {[%clk 0:01:09]} 21. Re1 {[%clk 0:00:26]}  Qxe1 {[%clk 0:01:07]} 22. Rxe1 {[%clk 0:00:27]}  Rxe1 {[%clk 0:01:07]} 23. Nxc5 {[%clk 0:00:15]}  Rae8 {[%clk 0:01:07]} 24. Nxd4 {[%clk 0:00:12]}  Nxd5 {[%clk 0:01:04]} 25. Kh3 {[%clk 0:00:10]}  h5 {[%clk 0:00:22]} 26. Ne4 {[%clk 0:00:08]}  Nb4 {[%clk 0:00:16]} 27. Qd2 {[%clk 0:00:06]}  Rb1 {[%clk 0:00:17]} 28. Nf5 {[%clk 0:00:06]}  Rc8 {[%clk 0:00:11]} 29. Nh6+ {[%clk 0:00:06]}  Kh7 {[%clk 0:00:10]} 30. Nxf7 {[%clk 0:00:04]}  Rc2 {[%clk 0:00:11]} 31. Neg5+ {[%clk 0:00:05]}  Kg6 {[%clk 0:00:10]} 32. Qf4 {[%clk 0:00:04]}  Rbxb2 {[%clk 0:00:10]} 33. Qe4+ {[%clk 0:00:05]}  Kf6 {[%clk 0:00:09]} 34. Qe6# {[%clk 0:00:05]} 1-0


[Site "https://www.chess.com"]